[Event "EYCC Girls-U16 2019"]
[Site "Bratislava"]
[Date "2019.08.07"]
[Round "6.1"]
[White "Sade, Defne"]
[Black "Waszczuk, Patrycja"]
[Result "0-1"]
[ECO "B83"]
[WhiteElo "1897"]
[BlackElo "2119"]
[Annotator "NA"]
[PlyCount "102"]
[EventDate "2019.08.02"]
[EventType "swiss"]
[EventCountry "SVK"]
[SourceTitle "playchess.com"]
[Source "ChessBase"]
[SourceQuality "1"]
[TimeControl "40/5400+30:1800+30"]

1. e4 {[%emt 0:00:00]} c5 {[%emt 0:00:00]} 2. Nf3 {[%emt 0:00:00]} e6 {[%emt 0:00:00]} 3. d4 {[%emt 0:00:00]} cxd4 {[%emt 0:00:00]} 4. Nxd4 {[%emt 0:00:00]} Nf6 {[%emt 0:00:00]} 5. Nc3 {[%emt 0:00:03]} d6 {[%emt 0:00:00]} 6. Be2 {[%emt 0:00:16]} Be7 {[%emt 0:00:00]} 7. Be3 {[%emt 0:00:12]} Nc6 {[%emt 0:00:33]} 8. O-O {[%emt 0:00:10]} O-O {[%emt 0:00:02]} 9. f4 {[%emt 0:00:37]} a6 {[%emt 0:00:53]} 10. Kh1 {[%emt 0:00:13]} Qc7 {[%emt 0:01:10]} 11. Qe1 {[%emt 0:00:37]} Nxd4 {[%emt 0:07:31]} 12. Bxd4 {[%emt 0:00:10]} e5 {[%emt 0:00:04]} 13. fxe5 {[%emt 0:05:22]} dxe5 {[%emt 0:01:37]} 14. Qg3 {[%emt 0:00:15]} Bd6 {[%emt 0:00:02]} 15. Be3 {[%emt 0:00:59]} Ne8 {[%emt 0:00:29]} 16. Rad1 {[%emt 0:14:38]} Be6 {[%emt 0:00:08]} 17. Qh4 {[%emt 0:00:40]} Be7 {[%emt 0:05:51]} 18. Qg3 {[%emt 0:01:34]} b5 {[%emt 0:05:48]} 19. Bd3 {[%emt 0:03:20]} Rd8 {[%emt 0:02:24]} 20. Rf3 {[%emt 0:07:59]} Nf6 {[%emt 0:07:12]} 21. Bg5 {[%emt 0:08:35]} Kh8 {[%emt 0:02:59]} 22. Rdf1 {[%emt 0:04:52]} Nh5 {[%emt 0:04:27]} 23. Qh4 {[%emt 0:00:28]} Bxg5 {[%emt 0:00:13]} 24. Qxg5 {[%emt 0:11:42]} Nf4 {[%emt 0:00:05]} 25. Qh4 {[%emt 0:01:00]} b4 {[%emt 0:11:32]} 26. Nd5 {[%emt 0:03:10]} Bxd5 {[%emt 0:07:21]} 27. exd5 {[%emt 0:00:07]} h6 {[%emt 0:00:07]} 28. g3 {[%emt 0:10:11]} Nxd3 {[%emt 0:00:06]} 29. cxd3 {[%emt 0:03:00]} Qb7 {[%emt 0:04:34]} 30. Qe4 {[%emt 0:12:37]} Rxd5 {[%emt 0:01:54]} 31. Rf5 {[%emt 0:00:10]} Qd7 {[%emt 0:04:17]} 32. Qxb4 {[%emt 0:02:23]} Kg8 {[%emt 0:00:04]} 33. Qc4 {[%emt 0:01:18]} Qe6 {[%emt 0:11:07]} 34. Qe4 {[%emt 0:01:36]} f6 {[%emt 0:03:30]} 35. Rh5 {[%emt 0:01:14]} Rd4 {[%emt 0:02:37]} 36. Qg6 {[%emt 0:00:33]} Rg4 {[%emt 0:03:00]} 37. Qf5 {[%emt 0:00:05]} Qd5+ {[%emt 0:00:48]} 38. Kg1 {[%emt 0:05:57]} Qd4+ {[%emt 0:02:30]} 39. Kh1 {[%emt 0:02:35]} Rd8 {[%emt 0:01:24]} 40. Qe6+ {[%emt 0:00:00]} Kh7 {[%emt 0:00:00]} 41. Qxa6 {[%emt 0:07:12]} Qd5+ {[%emt 0:10:24]} 42. Kg1 {[%emt 0:01:32]} Rb8 {[%emt 0:03:21]} 43. Qa3 {[%emt 0:09:27]} Rd4 {[%emt 0:03:14]} 44. Rhf5 {[%emt 0:08:41]} Rxd3 {[%emt 0:00:06]} 45. b3 {[%emt 0:00:31]} Ra8 {[%emt 0:02:54]} 46. Qc1 {[%emt 0:00:45]} Rxa2 {[%emt 0:00:31]} 47. R5f2 {[%emt 0:00:26]} Rxf2 {[%emt 0:01:09]} 48. Kxf2 {[%emt 0:00:07]} Rd2+ {[%emt 0:01:09]} 49. Ke1 {[%emt 0:00:08]} Rxh2 {[%emt 0:00:57]} 50. Qb1+ {[%emt 0:02:10]} Kh8 {[%emt 0:01:21]} 51. Rf2 {[%emt 0:00:46]} Rh1+ {[%emt 0:00:04]} 0-1

[Event "EYCC Girls-U16 2019"]
[Site "Bratislava"]
[Date "2019.08.07"]
[Round "6.2"]
[White "Malicka, Maria"]
[Black "Krasteva, Beloslava"]
[Result "1/2-1/2"]
[ECO "B94"]
[WhiteElo "2115"]
[BlackElo "2327"]
[Annotator "NA"]
[PlyCount "153"]
[EventDate "2019.08.02"]
[EventType "swiss"]
[EventCountry "SVK"]
[SourceTitle "playchess.com"]
[Source "ChessBase"]
[SourceQuality "1"]
[TimeControl "40/5400+30:1800+30"]

1. e4 {[%emt 0:00:00]} c5 {[%emt 0:00:00]} 2. Nf3 {[%emt 0:00:00]} d6 {[%emt 0:00:11]} 3. d4 {[%emt 0:00:00]} cxd4 {[%emt 0:00:10]} 4. Nxd4 {[%emt 0:00:00]} Nf6 {[%emt 0:00:18]} 5. Nc3 {[%emt 0:00:00]} a6 {[%emt 0:00:18]} 6. Bg5 {[%emt 0:00:00]} Nbd7 {[%emt 0:00:40]} 7. a4 {[%emt 0:00:06]} e6 {[%emt 0:01:56]} 8. a5 {[%emt 0:00:07]} Qc7 {[%emt 0:00:58]} 9. Nb3 {[%emt 0:00:44]} Be7 {[%emt 0:01:09]} 10. Be2 {[%emt 0:00:14]} O-O {[%emt 0:01:16]} 11. O-O {[%emt 0:00:11]} Rd8 {[%emt 0:01:56]} 12. Qd4 {[%emt 0:21:57]} h6 {[%emt 0:07:03]} 13. Be3 {[%emt 0:05:36]} Nc5 {[%emt 0:02:53]} 14. Rfd1 {[%emt 0:13:00]} Bd7 {[%emt 0:10:21]} 15. Qc4 {[%emt 0:07:43]} Rac8 {[%emt 0:06:13]} 16. Nxc5 {[%emt 0:01:35]} dxc5 {[%emt 0:00:26]} 17. f4 {[%emt 0:06:40]} Bc6 {[%emt 0:06:27]} 18. Rxd8+ {[%emt 0:01:39]} Qxd8 {[%emt 0:00:32]} 19. Bf3 {[%emt 0:03:14]} Ne8 {[%emt 0:04:34]} 20. Qe2 {[%emt 0:03:05]} Nc7 {[%emt 0:09:33]} 21. Na4 {[%emt 0:04:51]} Nb5 {[%emt 0:01:32]} 22. Nb6 {[%emt 0:07:06]} Nd4 {[%emt 0:04:27]} 23. Qf2 {[%emt 0:02:48]} Rb8 {[%emt 0:01:30]} 24. Rd1 {[%emt 0:02:40]} Nxf3+ {[%emt 0:00:57]} 25. Qxf3 {[%emt 0:00:01]} Qe8 {[%emt 0:01:02]} 26. f5 {[%emt 0:05:52]} Rd8 {[%emt 0:04:02]} 27. fxe6 {[%emt 0:01:10]} fxe6 {[%emt 0:00:40]} 28. Rxd8 {[%emt 0:01:04]} Qxd8 {[%emt 0:08:46]} 29. Qg4 {[%emt 0:00:10]} Kh8 {[%emt 0:01:08]} 30. h3 {[%emt 0:05:38]} Bf6 {[%emt 0:01:55]} 31. Qxe6 {[%emt 0:01:47]} Bd4 {[%emt 0:07:16]} 32. Bxd4 {[%emt 0:03:05]} Qxd4+ {[%emt 0:00:08]} 33. Kh2 {[%emt 0:00:04]} Qxe4 {[%emt 0:01:45]} 34. Qxe4 {[%emt 0:00:02]} Bxe4 {[%emt 0:00:06]} 35. Nd7 {[%emt 0:03:13]} c4 {[%emt 0:01:19]} 36. c3 {[%emt 0:00:51]} Kg8 {[%emt 0:04:43]} 37. Kg3 {[%emt 0:00:45]} Bc6 {[%emt 0:03:17]} 38. Nb6 {[%emt 0:00:20]} Bb5 {[%emt 0:00:24]} 39. Kf4 {[%emt 0:00:25]} Kf7 {[%emt 0:01:17]} 40. Kf5 {[%emt 0:00:00]} g5 {[%emt 0:00:00]} 41. g3 {[%emt 0:15:55]} Bc6 {[%emt 0:07:31]} 42. Ke5 {[%emt 0:04:16]} Bg2 {[%emt 0:04:23]} 43. Nxc4 {[%emt 0:03:54]} Bxh3 {[%emt 0:00:48]} 44. Nd6+ {[%emt 0:00:09]} Kg6 {[%emt 0:02:52]} 45. Nxb7 {[%emt 0:00:04]} h5 {[%emt 0:01:00]} 46. Nc5 {[%emt 0:03:35]} Bc8 {[%emt 0:09:34]} 47. c4 {[%emt 0:01:10]} h4 {[%emt 0:00:30]} 48. gxh4 {[%emt 0:00:01]} gxh4 {[%emt 0:00:06]} 49. Nd3 {[%emt 0:01:54]} Kf7 {[%emt 0:04:54]} 50. Kd6 {[%emt 0:03:30]} h3 {[%emt 0:02:20]} 51. Nf2 {[%emt 0:00:22]} Ke8 {[%emt 0:02:36]} 52. Kc7 {[%emt 0:00:49]} Be6 {[%emt 0:02:09]} 53. b3 {[%emt 0:00:16]} h2 {[%emt 0:00:40]} 54. Kb7 {[%emt 0:01:34]} Kd8 {[%emt 0:00:41]} 55. Kxa6 {[%emt 0:00:11]} Kc7 {[%emt 0:00:20]} 56. Kb5 {[%emt 0:00:17]} Bd7+ {[%emt 0:00:32]} 57. Kc5 {[%emt 0:00:08]} Bc6 {[%emt 0:00:22]} 58. b4 {[%emt 0:00:29]} h1=Q {[%emt 0:00:26]} 59. Nxh1 {[%emt 0:00:01]} Bxh1 {[%emt 0:00:08]} 60. b5 {[%emt 0:00:27]} Bf3 {[%emt 0:02:17]} 61. a6 {[%emt 0:00:48]} Be2 {[%emt 0:00:39]} 62. b6+ {[%emt 0:00:25]} Kb8 {[%emt 0:00:25]} 63. Kc6 {[%emt 0:01:35]} Bf3+ {[%emt 0:00:12]} 64. Kd6 {[%emt 0:00:32]} Be2 {[%emt 0:00:34]} 65. Kd5 {[%emt 0:01:45]} Bf1 {[%emt 0:01:29]} 66. Kc6 {[%emt 0:00:11]} Bg2+ {[%emt 0:00:05]} 67. Kc5 {[%emt 0:00:47]} Bf1 {[%emt 0:01:13]} 68. Kd4 {[%emt 0:00:19]} Be2 {[%emt 0:00:23]} 69. Kd5 {[%emt 0:00:14]} Bf1 {[%emt 0:00:54]} 70. Kc6 {[%emt 0:00:52]} Bg2+ {[%emt 0:00:06]} 71. Kd7 {[%emt 0:00:19]} Bf1 {[%emt 0:00:55]} 72. c5 {[%emt 0:00:45]} Bxa6 {[%emt 0:00:12]} 73. c6 {[%emt 0:00:03]} Bc8+ {[%emt 0:00:56]} 74. Kd8 {[%emt 0:00:46]} Bg4 {[%emt 0:00:13]} 75. b7 {[%emt 0:00:26]} Bf5 {[%emt 0:00:20]} 76. Ke7 {[%emt 0:00:08]} Kc7 {[%emt 0:00:54]} 77. Kf6 {[%emt 0:00:04]} 1/2-1/2

[Event "EYCC Girls-U16 2019"]
[Site "Bratislava"]
[Date "2019.08.07"]
[Round "6.3"]
[White "Getman, Tatyana"]
[Black "Marcinczyk, Monika"]
[Result "1-0"]
[ECO "A53"]
[WhiteElo "2143"]
[BlackElo "1960"]
[Annotator "NA"]
[PlyCount "77"]
[EventDate "2019.08.02"]
[EventType "swiss"]
[EventCountry "SVK"]
[SourceTitle "playchess.com"]
[Source "ChessBase"]
[SourceQuality "1"]
[TimeControl "40/5400+30:1800+30"]

1. d4 {[%emt 0:00:00]} Nf6 {[%emt 0:00:00]} 2. c4 {[%emt 0:00:00]} d6 {[%emt 0:00:00]} 3. Nc3 {[%emt 0:00:06]} Nbd7 {[%emt 0:00:00]} 4. e4 {[%emt 0:03:12]} e5 {[%emt 0:00:06]} 5. d5 {[%emt 0:01:24]} Nc5 {[%emt 0:01:30]} 6. Qc2 {[%emt 0:00:11]} a5 {[%emt 0:00:09]} 7. Nf3 {[%emt 0:01:02]} g6 {[%emt 0:00:15]} 8. h3 {[%emt 0:00:45]} Bg7 {[%emt 0:00:28]} 9. Bg5 {[%emt 0:00:44]} O-O {[%emt 0:00:33]} 10. Nd2 {[%emt 0:01:17]} Bd7 {[%emt 0:01:13]} 11. Be2 {[%emt 0:01:12]} c6 {[%emt 0:00:26]} 12. Be3 {[%emt 0:06:56]} Rc8 {[%emt 0:00:52]} 13. Bxc5 {[%emt 0:14:18]} dxc5 {[%emt 0:00:15]} 14. Rd1 {[%emt 0:05:05]} cxd5 {[%emt 0:03:46]} 15. cxd5 {[%emt 0:00:26]} Ne8 {[%emt 0:01:22]} 16. a4 {[%emt 0:02:47]} Nd6 {[%emt 0:02:16]} 17. Nc4 {[%emt 0:00:58]} Qc7 {[%emt 0:11:04]} 18. Nxd6 {[%emt 0:00:57]} Qxd6 {[%emt 0:00:02]} 19. Bb5 {[%emt 0:00:10]} f5 {[%emt 0:01:53]} 20. Bxd7 {[%emt 0:02:58]} Qxd7 {[%emt 0:00:02]} 21. Qb3 {[%emt 0:10:36]} fxe4 {[%emt 0:18:56]} 22. Nxe4 {[%emt 0:01:11]} Rf4 {[%emt 0:02:10]} 23. f3 {[%emt 0:04:12]} c4 {[%emt 0:08:45]} 24. Qb5 {[%emt 0:00:37]} Qxb5 {[%emt 0:02:08]} 25. axb5 {[%emt 0:00:07]} Bf8 {[%emt 0:01:51]} 26. d6 {[%emt 0:00:44]} Rd8 {[%emt 0:01:59]} 27. Ke2 {[%emt 0:00:33]} Rxe4+ {[%emt 0:03:39]} 28. fxe4 {[%emt 0:00:06]} Rxd6 {[%emt 0:02:29]} 29. Rxd6 {[%emt 0:01:14]} Bxd6 {[%emt 0:00:01]} 30. Rd1 {[%emt 0:00:10]} Bc5 {[%emt 0:03:45]} 31. Rd8+ {[%emt 0:00:08]} Kf7 {[%emt 0:00:16]} 32. Rd7+ {[%emt 0:00:01]} Ke6 {[%emt 0:00:21]} 33. Rxb7 {[%emt 0:00:07]} a4 {[%emt 0:04:16]} 34. Kd2 {[%emt 0:01:19]} h5 {[%emt 0:01:58]} 35. Rc7 {[%emt 0:00:16]} Bd4 {[%emt 0:00:13]} 36. Rxc4 {[%emt 0:00:19]} Kd7 {[%emt 0:01:06]} 37. Kc2 {[%emt 0:00:06]} g5 {[%emt 0:00:34]} 38. Rxa4 {[%emt 0:00:05]} Kc7 {[%emt 0:00:09]} 39. Rxd4 {[%emt 0:00:12]} 1-0

[Event "EYCC Girls-U16 2019"]
[Site "Bratislava"]
[Date "2019.08.07"]
[Round "6.4"]
[White "Lehaci, Miruna-Daria"]
[Black "Hryzlova, Sofiia"]
[Result "1-0"]
[ECO "C10"]
[WhiteElo "2201"]
[BlackElo "1799"]
[Annotator "NA"]
[PlyCount "91"]
[EventDate "2019.08.02"]
[EventType "swiss"]
[EventCountry "SVK"]
[SourceTitle "playchess.com"]
[Source "ChessBase"]
[SourceQuality "1"]
[TimeControl "40/5400+30:1800+30"]

1. e4 {[%emt 0:00:00]} e6 {[%emt 0:00:00]} 2. d4 {[%emt 0:00:00]} d5 {[%emt 0:00:25]} 3. Nc3 {[%emt 0:00:00]} Nc6 {[%emt 0:00:22]} 4. Nf3 {[%emt 0:01:24]} Nf6 {[%emt 0:00:39]} 5. e5 {[%emt 0:04:24]} Ne4 {[%emt 0:00:11]} 6. Ne2 {[%emt 0:09:40]} Be7 {[%emt 0:08:57]} 7. Ng3 {[%emt 0:01:27]} Ng5 {[%emt 0:04:49]} 8. Nxg5 {[%emt 0:11:39]} Bxg5 {[%emt 0:00:27]} 9. f4 {[%emt 0:00:03]} Bh6 {[%emt 0:04:56]} 10. c3 {[%emt 0:05:36]} O-O {[%emt 0:08:41]} 11. Bd3 {[%emt 0:04:00]} f5 {[%emt 0:19:04]} 12. O-O {[%emt 0:08:13]} b6 {[%emt 0:02:13]} 13. b3 {[%emt 0:03:04]} Ne7 {[%emt 0:03:51]} 14. Be3 {[%emt 0:01:57]} Bb7 {[%emt 0:02:34]} 15. Qe2 {[%emt 0:01:46]} c6 {[%emt 0:06:43]} 16. a4 {[%emt 0:08:48]} a5 {[%emt 0:02:38]} 17. Rfc1 {[%emt 0:04:05]} Ng6 {[%emt 0:02:27]} 18. Qf2 {[%emt 0:02:31]} Qh4 {[%emt 0:07:22]} 19. Ne2 {[%emt 0:02:54]} Qxf2+ {[%emt 0:01:30]} 20. Kxf2 {[%emt 0:00:04]} c5 {[%emt 0:01:35]} 21. g3 {[%emt 0:04:10]} Rfc8 {[%emt 0:01:24]} 22. c4 {[%emt 0:02:06]} Ba6 {[%emt 0:02:14]} 23. Rc3 {[%emt 0:00:33]} Ne7 {[%emt 0:02:16]} 24. Rac1 {[%emt 0:00:45]} g6 {[%emt 0:05:05]} 25. dxc5 {[%emt 0:05:47]} bxc5 {[%emt 0:02:37]} 26. cxd5 {[%emt 0:00:26]} Nxd5 {[%emt 0:01:50]} 27. Bxa6 {[%emt 0:00:48]} Nxc3 {[%emt 0:00:31]} 28. Bxc8 {[%emt 0:00:09]} Ne4+ {[%emt 0:00:05]} 29. Ke1 {[%emt 0:01:15]} Rxc8 {[%emt 0:00:05]} 30. Nc3 {[%emt 0:00:28]} Nxc3 {[%emt 0:01:01]} 31. Rxc3 {[%emt 0:00:04]} Bf8 {[%emt 0:00:08]} 32. Ke2 {[%emt 0:00:25]} Kf7 {[%emt 0:02:07]} 33. Kd3 {[%emt 0:00:11]} Rb8 {[%emt 0:05:10]} 34. Kc2 {[%emt 0:07:45]} Rc8 {[%emt 0:00:15]} 35. Bd2 {[%emt 0:00:07]} Ra8 {[%emt 0:01:22]} 36. Rd3 {[%emt 0:00:18]} Ke8 {[%emt 0:01:00]} 37. Kc3 {[%emt 0:00:20]} Be7 {[%emt 0:00:59]} 38. Kc4 {[%emt 0:00:04]} Ra7 {[%emt 0:00:39]} 39. Kb5 {[%emt 0:00:52]} Bd8 {[%emt 0:00:34]} 40. Kxc5 {[%emt 0:00:00]} Rc7+ {[%emt 0:00:00]} 41. Kb5 {[%emt 0:03:48]} Rb7+ {[%emt 0:05:27]} 42. Ka6 {[%emt 0:00:29]} Rb8 {[%emt 0:01:00]} 43. Ka7 {[%emt 0:00:40]} Rc8 {[%emt 0:00:20]} 44. Rc3 {[%emt 0:01:39]} Bc7 {[%emt 0:02:55]} 45. Kb7 {[%emt 0:00:32]} Rd8 {[%emt 0:01:03]} 46. Be3 {[%emt 0:00:15]} 1-0

[Event "EYCC Girls-U16 2019"]
[Site "Bratislava"]
[Date "2019.08.07"]
[Round "6.5"]
[White "Mkrtchyan, Mariam"]
[Black "Kuhar, Larisa"]
[Result "1-0"]
[ECO "D02"]
[WhiteElo "1981"]
[BlackElo "1894"]
[Annotator "NA"]
[PlyCount "89"]
[EventDate "2019.08.02"]
[EventType "swiss"]
[EventCountry "SVK"]
[SourceTitle "playchess.com"]
[Source "ChessBase"]
[SourceQuality "1"]
[TimeControl "40/5400+30:1800+30"]

1. d4 {[%emt 0:00:00]} d5 {[%emt 0:00:00]} 2. Nf3 {[%emt 0:00:00]} c5 {[%emt 0:00:35]} 3. c4 {[%emt 0:04:46]} dxc4 {[%emt 0:00:48]} 4. e4 {[%emt 0:07:37]} cxd4 {[%emt 0:03:56]} 5. Qxd4 {[%emt 0:01:09]} Qxd4 {[%emt 0:03:56]} 6. Nxd4 {[%emt 0:00:04]} Bd7 {[%emt 0:00:16]} 7. Bxc4 {[%emt 0:05:11]} Nc6 {[%emt 0:06:11]} 8. Nxc6 {[%emt 0:03:00]} Bxc6 {[%emt 0:00:08]} 9. Nc3 {[%emt 0:00:01]} e6 {[%emt 0:08:47]} 10. Be3 {[%emt 0:04:41]} Bb4 {[%emt 0:04:56]} 11. f3 {[%emt 0:02:31]} Nf6 {[%emt 0:13:17]} 12. Kf2 {[%emt 0:04:11]} O-O {[%emt 0:03:37]} 13. Nb5 {[%emt 0:07:34]} a6 {[%emt 0:07:23]} 14. Nd4 {[%emt 0:00:39]} Bd7 {[%emt 0:01:24]} 15. e5 {[%emt 0:04:22]} Nd5 {[%emt 0:05:18]} 16. Bxd5 {[%emt 0:00:44]} exd5 {[%emt 0:00:01]} 17. Rac1 {[%emt 0:00:17]} Rac8 {[%emt 0:01:32]} 18. a3 {[%emt 0:03:03]} Bc5 {[%emt 0:07:01]} 19. Nb3 {[%emt 0:08:57]} Bxe3+ {[%emt 0:07:41]} 20. Kxe3 {[%emt 0:00:16]} b6 {[%emt 0:02:37]} 21. Rxc8 {[%emt 0:04:28]} Rxc8 {[%emt 0:00:15]} 22. Rc1 {[%emt 0:00:04]} Kf8 {[%emt 0:06:07]} 23. Rxc8+ {[%emt 0:08:14]} Bxc8 {[%emt 0:00:01]} 24. Nc1 {[%emt 0:02:12]} Ke7 {[%emt 0:01:36]} 25. Ne2 {[%emt 0:01:17]} Ke6 {[%emt 0:02:41]} 26. Kd4 {[%emt 0:00:31]} g5 {[%emt 0:02:56]} 27. Nc3 {[%emt 0:00:15]} Bb7 {[%emt 0:03:37]} 28. Na4 {[%emt 0:00:11]} f6 {[%emt 0:02:40]} 29. exf6 {[%emt 0:00:31]} Kxf6 {[%emt 0:00:13]} 30. Nxb6 {[%emt 0:00:01]} Ke6 {[%emt 0:00:02]} 31. Na4 {[%emt 0:00:34]} Kd6 {[%emt 0:00:27]} 32. Nc5 {[%emt 0:00:42]} Bc8 {[%emt 0:00:36]} 33. b4 {[%emt 0:00:35]} h5 {[%emt 0:01:16]} 34. a4 {[%emt 0:00:14]} h4 {[%emt 0:02:29]} 35. h3 {[%emt 0:00:35]} Bf5 {[%emt 0:01:26]} 36. Nxa6 {[%emt 0:02:17]} Bc2 {[%emt 0:00:17]} 37. Nc5 {[%emt 0:00:03]} Kc6 {[%emt 0:01:09]} 38. b5+ {[%emt 0:00:46]} Kb6 {[%emt 0:00:26]} 39. Kxd5 {[%emt 0:00:18]} Bd1 {[%emt 0:00:39]} 40. Kc4 {[%emt 0:00:00]} Be2+ {[%emt 0:00:00]} 41. Kb4 {[%emt 0:01:46]} Bf1 {[%emt 0:01:34]} 42. a5+ {[%emt 0:00:11]} Ka7 {[%emt 0:01:03]} 43. b6+ {[%emt 0:00:04]} Kb8 {[%emt 0:00:28]} 44. a6 {[%emt 0:00:25]} Bxg2 {[%emt 0:01:11]} 45. Nd7+ {[%emt 0:00:08]} 1-0

[Event "EYCC Girls-U16 2019"]
[Site "Bratislava"]
[Date "2019.08.07"]
[Round "6.6"]
[White "Bulatova, Kamaliya"]
[Black "Laurincova, Kristyna"]
[Result "0-1"]
[ECO "D85"]
[WhiteElo "2157"]
[BlackElo "1981"]
[Annotator "NA"]
[PlyCount "92"]
[EventDate "2019.08.02"]
[EventType "swiss"]
[EventCountry "SVK"]
[SourceTitle "playchess.com"]
[Source "ChessBase"]
[SourceQuality "1"]
[TimeControl "40/5400+30:1800+30"]

1. d4 {[%emt 0:00:00]} Nf6 {[%emt 0:00:00]} 2. c4 {[%emt 0:00:00]} g6 {[%emt 0:00:01]} 3. Nc3 {[%emt 0:00:00]} d5 {[%emt 0:00:12]} 4. cxd5 {[%emt 0:00:00]} Nxd5 {[%emt 0:00:06]} 5. e4 {[%emt 0:00:00]} Nxc3 {[%emt 0:00:13]} 6. bxc3 {[%emt 0:00:01]} Bg7 {[%emt 0:00:11]} 7. Nf3 {[%emt 0:00:04]} c5 {[%emt 0:00:40]} 8. Rb1 {[%emt 0:00:10]} O-O {[%emt 0:00:43]} 9. Be2 {[%emt 0:00:03]} Nc6 {[%emt 0:01:31]} 10. d5 {[%emt 0:00:34]} Ne5 {[%emt 0:01:24]} 11. Nxe5 {[%emt 0:00:14]} Bxe5 {[%emt 0:00:07]} 12. Qd2 {[%emt 0:00:21]} e6 {[%emt 0:02:39]} 13. f4 {[%emt 0:00:20]} Bg7 {[%emt 0:00:16]} 14. O-O {[%emt 0:09:34]} exd5 {[%emt 0:06:09]} 15. exd5 {[%emt 0:00:30]} Qd6 {[%emt 0:01:15]} 16. Kh1 {[%emt 0:10:53]} b6 {[%emt 0:02:03]} 17. c4 {[%emt 0:00:35]} Bf5 {[%emt 0:01:34]} 18. Rb3 {[%emt 0:06:01]} Rfe8 {[%emt 0:02:47]} 19. Bf3 {[%emt 0:00:27]} Re7 {[%emt 0:10:18]} 20. a4 {[%emt 0:11:27]} Rae8 {[%emt 0:14:17]} 21. a5 {[%emt 0:06:54]} Bd4 {[%emt 0:00:43]} 22. axb6 {[%emt 0:04:42]} axb6 {[%emt 0:00:43]} 23. h3 {[%emt 0:17:18]} Be3 {[%emt 0:18:19]} 24. Rxe3 {[%emt 0:11:57]} Rxe3 {[%emt 0:00:05]} 25. Qxe3 {[%emt 0:00:02]} Rxe3 {[%emt 0:00:06]} 26. Bxe3 {[%emt 0:00:02]} Qd7 {[%emt 0:03:14]} 27. Re1 {[%emt 0:03:12]} Bxh3 {[%emt 0:06:05]} 28. f5 {[%emt 0:03:36]} Bxf5 {[%emt 0:02:16]} 29. Bh6 {[%emt 0:01:52]} f6 {[%emt 0:00:32]} 30. d6 {[%emt 0:01:01]} Be6 {[%emt 0:04:46]} 31. Bf4 {[%emt 0:02:02]} Kf7 {[%emt 0:04:54]} 32. Rb1 {[%emt 0:05:38]} Qd8 {[%emt 0:02:32]} 33. Ra1 {[%emt 0:00:48]} g5 {[%emt 0:03:23]} 34. Ra7+ {[%emt 0:03:14]} Kg6 {[%emt 0:00:09]} 35. Bg3 {[%emt 0:00:03]} f5 {[%emt 0:02:45]} 36. Re7 {[%emt 0:01:13]} f4 {[%emt 0:03:45]} 37. Bxf4 {[%emt 0:00:29]} gxf4 {[%emt 0:00:06]} 38. Rxe6+ {[%emt 0:00:02]} Kf5 {[%emt 0:00:24]} 39. Bd5 {[%emt 0:02:09]} Qd7 {[%emt 0:03:47]} 40. Rh6 {[%emt 0:00:00]} Ke5 {[%emt 0:00:00]} 41. Kg1 {[%emt 0:01:53]} b5 {[%emt 0:04:27]} 42. Kf2 {[%emt 0:01:25]} Kd4 {[%emt 0:02:14]} 43. Kf3 {[%emt 0:06:02]} bxc4 {[%emt 0:00:19]} 44. Be4 {[%emt 0:00:03]} Qg7 {[%emt 0:04:07]} 45. Re6 {[%emt 0:03:01]} Qg3+ {[%emt 0:00:07]} 46. Ke2 {[%emt 0:00:04]} Qg4+ {[%emt 0:00:07]} 0-1

[Event "EYCC Girls-U16 2019"]
[Site "Bratislava"]
[Date "2019.08.07"]
[Round "6.7"]
[White "Loskutova, Viktoriya"]
[Black "Kvendseth, Thyra"]
[Result "1-0"]
[ECO "A05"]
[WhiteElo "2019"]
[BlackElo "1977"]
[Annotator "NA"]
[PlyCount "67"]
[EventDate "2019.08.02"]
[EventType "swiss"]
[EventCountry "SVK"]
[SourceTitle "playchess.com"]
[Source "ChessBase"]
[SourceQuality "1"]
[TimeControl "40/5400+30:1800+30"]

1. Nf3 {[%emt 0:00:00]} Nf6 {[%emt 0:00:30]} 2. c4 {[%emt 0:00:00]} g6 {[%emt 0:00:37]} 3. Nc3 {[%emt 0:00:17]} Bg7 {[%emt 0:00:08]} 4. d4 {[%emt 0:00:09]} d6 {[%emt 0:01:23]} 5. e4 {[%emt 0:00:24]} O-O {[%emt 0:00:15]} 6. h3 {[%emt 0:00:28]} e5 {[%emt 0:02:46]} 7. d5 {[%emt 0:00:34]} Nbd7 {[%emt 0:09:08]} 8. Bg5 {[%emt 0:04:45]} a5 {[%emt 0:03:52]} 9. Be2 {[%emt 0:11:22]} Nc5 {[%emt 0:01:05]} 10. Nd2 {[%emt 0:00:10]} c6 {[%emt 0:05:47]} 11. g4 {[%emt 0:06:06]} Qc7 {[%emt 0:03:48]} 12. Qc2 {[%emt 0:03:35]} Ne8 {[%emt 0:02:36]} 13. Be3 {[%emt 0:04:33]} Na6 {[%emt 0:03:57]} 14. a3 {[%emt 0:00:10]} f5 {[%emt 0:00:49]} 15. exf5 {[%emt 0:02:59]} gxf5 {[%emt 0:00:16]} 16. f3 {[%emt 0:00:12]} f4 {[%emt 0:14:30]} 17. Bf2 {[%emt 0:00:07]} Nf6 {[%emt 0:00:12]} 18. Nde4 {[%emt 0:13:39]} Kh8 {[%emt 0:06:26]} 19. O-O-O {[%emt 0:06:06]} cxd5 {[%emt 0:13:23]} 20. Nxf6 {[%emt 0:00:22]} Bxf6 {[%emt 0:00:05]} 21. Nxd5 {[%emt 0:00:59]} Qc6 {[%emt 0:00:27]} 22. Bd3 {[%emt 0:03:00]} h6 {[%emt 0:04:17]} 23. Be4 {[%emt 0:01:20]} Qe8 {[%emt 0:00:59]} 24. Nb6 {[%emt 0:04:40]} Rb8 {[%emt 0:01:22]} 25. Rxd6 {[%emt 0:00:38]} Be6 {[%emt 0:02:42]} 26. Rhd1 {[%emt 0:03:54]} Qf7 {[%emt 0:03:19]} 27. Bd5 {[%emt 0:04:16]} Rfe8 {[%emt 0:03:23]} 28. Bxe6 {[%emt 0:03:10]} Rxe6 {[%emt 0:00:09]} 29. Rxe6 {[%emt 0:00:18]} Qxe6 {[%emt 0:00:08]} 30. Qg6 {[%emt 0:00:08]} e4 {[%emt 0:04:50]} 31. Qxh6+ {[%emt 0:00:26]} Kg8 {[%emt 0:00:05]} 32. Qg6+ {[%emt 0:00:08]} Kh8 {[%emt 0:00:47]} 33. Bd4 {[%emt 0:00:42]} Rf8 {[%emt 0:00:40]} 34. Nd5 {[%emt 0:00:06]} 1-0